bitfinex-derivatives/quotes_BTCF0:USTF0_20260221
["timestamp","ask_amount","ask_price","bid_price","bid_amount"]
[1771714821501,0.014705,68023.0,68017.0,0.014706]
[1771714821807,0.014704,68027.0,68017.0,0.014706]
[1771714822006,0.014702,68034.0,68024.0,0.014704]
[1771714822200,0.63999461,68034.0,68007.0,1.27318881]
[1771714822509,0.014706,68017.0,68011.0,0.014707]
[1771714823109,0.014706,68016.0,68009.0,0.014708]
[1771714823308,0.014707,68014.0,68009.0,0.014708]
[1771714823505,0.014707,68015.0,68009.0,0.014708]
[1771714823904,0.014706,68016.0,68010.0,0.014708]
[1771714824104,0.014707,68016.0,68010.0,0.014708]
[1771714824506,0.014707,68014.0,68008.0,0.014708]
[1771714824713,0.014707,68015.0,68010.0,0.014708]
[1771714825312,0.63999461,68031.0,68007.0,0.014708]
[1771714825515,0.62887423,68027.0,68004.0,0.014709]
[1771714825711,0.014707,68011.0,68005.0,0.014709]
[1771714827115,0.014707,68011.0,68006.0,0.014708]
[1771714827603,0.014707,68011.0,68005.0,0.014709]
[1771714828307,0.014708,68010.0,68004.0,0.014709]
[1771714828508,0.014708,68009.0,68004.0,0.014709]
[1771714829410,0.014708,68010.0,68004.0,0.014709]
[1771714830514,0.014707,68011.0,68005.0,0.014709]
[1771714830715,0.014708,68010.0,68005.0,0.014709]
[1771714831317,0.014708,68010.0,68004.0,0.014709]
[1771714831816,0.014708,68009.0,68004.0,0.014709]
[1771714832012,0.014708,68008.0,68003.0,0.014709]
[1771714832213,0.014708,68010.0,67998.0,0.01471]
[1771714832520,0.01471,68001.0,67996.0,0.014711]
[1771714832706,0.014709,68002.0,67996.0,0.014711]
[1771714832910,0.01471,68001.0,67996.0,0.014711]
[1771714833111,0.01471,67999.0,67994.0,0.014711]
[1771714833315,0.01471,68000.0,67994.0,0.014711]
[1771714833819,0.01471,68000.0,67995.0,0.014711]
[1771714834220,0.01471,68001.0,67995.0,0.014711]
[1771714834720,0.014709,68002.0,67996.0,0.014711]
[1771714835412,0.01471,67998.0,67992.0,0.014711]
[1771714835620,0.02942,68000.0,67993.0,0.014711]
[1771714835813,0.01471,67999.0,67994.0,0.014711]
[1771714836407,0.01471,68000.0,67994.0,0.014711]
[1771714837324,0.01471,68000.0,67995.0,0.014711]
[1771714837910,0.01471,68000.0,67994.0,0.014711]
[1771714838115,0.01471,68000.0,67995.0,0.014711]
[1771714838623,0.014709,68002.0,67991.0,0.014712]
[1771714839227,0.01471,68001.0,67995.0,0.014711]
[1771714839821,0.01471,68000.0,67995.0,0.014711]
[1771714841923,0.01471,68000.0,67994.0,0.014711]
[1771714842227,0.01471,68000.0,67993.0,0.014711]
[1771714842725,0.01471,68000.0,67991.0,0.014712]
[1771714842925,0.01471,68000.0,67994.0,0.014711]
[1771714843520,0.01471,68000.0,67995.0,0.014711]
[1771714843723,0.01471,68000.0,67993.0,0.014711]
[1771714843923,0.01471,68000.0,67994.0,0.014711]
[1771714844529,0.01471,68000.0,67995.0,0.014711]
[1771714844728,0.01471,68001.0,67995.0,0.014711]
[1771714846029,0.014709,68004.0,67995.0,0.014711]
[1771714846231,0.014709,68004.0,67998.0,0.01471]
[1771714846426,0.014709,68002.0,67997.0,0.01471]
[1771714846632,0.029418,68004.0,67998.0,0.01471]
[1771714846934,0.014707,68013.0,68008.0,0.014708]
[1771714847427,0.014706,68017.0,68011.0,0.014707]
[1771714847734,0.014706,68018.0,68013.0,0.014707]
[1771714848526,0.029412,68018.0,68013.0,0.014707]
[1771714848935,0.014704,68026.0,68017.0,0.014706]
[1771714849231,0.014705,68023.0,68017.0,0.014706]
[1771714849527,0.014705,68022.0,68017.0,0.014706]
[1771714850133,0.014705,68023.0,68018.0,0.014706]
[1771714850830,0.014705,68023.0,68017.0,0.014706]
[1771714851132,0.014705,68022.0,68017.0,0.014706]
[1771714852827,0.014705,68023.0,68017.0,0.014706]
[1771714853034,0.014706,68020.0,68015.0,0.014706]
[1771714854135,0.014706,68020.0,68015.0,0.029412]
[1771714854336,0.014706,68020.0,68015.0,0.014706]
[1771714855532,0.014706,68018.0,68013.0,0.014707]
[1771714855942,0.014706,68019.0,68013.0,0.014707]
[1771714856130,0.014705,68021.0,68015.0,0.014706]
[1771714856439,0.014705,68021.0,68008.0,1.20456523]
[1771714856737,0.014705,68022.0,68015.0,0.014706]
[1771714856738,0.014706,68020.0,68015.0,0.014706]
[1771714856938,0.014706,68020.0,68016.0,0.014706]
[1771714857441,0.014706,68020.0,68015.0,0.014706]
[1771714857840,0.014705,68021.0,68016.0,0.014706]
[1771714858239,0.014705,68020.0,68016.0,0.014706]
[1771714858442,0.014705,68021.0,68016.0,0.014706]
[1771714858634,0.014705,68020.0,68016.0,0.014706]
[1771714859138,0.014705,68020.0,68015.0,0.014706]
[1771714859441,0.014705,68021.0,68016.0,0.014706]
[1771714859638,0.014705,68024.0,68017.0,0.014706]
[1771714859841,0.014705,68021.0,68017.0,0.014706]
[1771714860035,0.014705,68021.0,68016.0,0.014706]
[1771714860644,0.014705,68021.0,68012.0,0.014707]
[1771714860645,0.014705,68022.0,68017.0,0.014706]
[1771714860845,0.014705,68023.0,68018.0,0.014706]
[1771714862345,0.014704,68026.0,68019.0,0.014706]
[1771714862536,0.014702,68038.0,68019.0,0.014706]
[1771714862537,0.014704,68025.0,68020.0,0.014705]
[1771714862733,0.014704,68026.0,68020.0,0.014705]
[1771714862940,0.014704,68026.0,68021.0,0.014705]
[1771714863238,0.014704,68025.0,68021.0,0.014705]
[1771714863448,0.014703,68030.0,68022.0,0.014705]
[1771714863644,0.014703,68034.0,68022.0,0.014705]
[1771714863836,0.014704,68029.0,68023.0,0.014705]
[1771714864337,0.014703,68031.0,68025.0,0.014704]
[1771714864642,0.014704,68029.0,68024.0,0.014705]
[1771714864842,0.014703,68031.0,68024.0,0.014705]
[1771714865044,0.014704,68029.0,68024.0,0.014705]
[1771714865439,0.014702,68037.0,68024.0,0.014705]
[1771714865640,0.014704,68029.0,68024.0,0.014705]
[1771714865836,0.014702,68035.0,68025.0,0.014704]
[1771714866038,0.1174909,68052.0,68027.0,0.014704]
[1771714866039,0.1321899,68052.0,68027.0,0.014704]
[1771714866239,0.1321899,68052.0,68034.0,0.014702]
[1771714866240,0.014701,68040.0,68034.0,0.014702]
[1771714866543,0.014701,68041.0,68034.0,0.014702]
[1771714866744,0.014701,68042.0,68032.0,0.014703]
[1771714866933,0.014702,68038.0,68032.0,0.014703]
[1771714867135,0.0147,68047.0,68033.0,1.18985723]
[1771714867336,0.0147,68046.0,68033.0,1.18985723]
[1771714867646,0.014702,68039.0,68034.0,0.014702]
[1771714867946,0.014699,68049.0,68021.0,1.14491373]
[1771714868141,0.014703,68034.0,68029.0,0.014703]
[1771714868746,0.014702,68035.0,68022.0,0.014705]
[1771714868942,0.014704,68027.0,68022.0,0.014705]
[1771714869142,0.014704,68027.0,68021.0,0.014705]
[1771714869543,0.014704,68027.0,68022.0,0.014705]
[1771714870848,0.014704,68027.0,68021.0,0.014705]
[1771714871746,0.014704,68027.0,68020.0,0.014705]
[1771714871949,0.014703,68030.0,68022.0,0.014705]
[1771714872251,0.014704,68028.0,68023.0,0.014705]
[1771714873754,0.014704,68030.0,68024.0,0.014704]
[1771714874152,0.014702,68039.0,68024.0,0.014704]
[1771714874153,0.014704,68029.0,68024.0,0.014705]
[1771714874547,0.014703,68032.0,68026.0,0.014704]
[1771714874742,0.014703,68032.0,68025.0,0.014704]
[1771714874949,0.014703,68030.0,68024.0,0.014705]
[1771714877050,0.014703,68030.0,68025.0,0.014704]
[1771714877756,0.014703,68032.0,68026.0,0.014704]
[1771714877956,0.014703,68031.0,68025.0,0.014704]
[1771714878251,0.014703,68030.0,68023.0,0.014705]
[1771714878466,0.014705,68021.0,68015.0,0.014706]
[1771714878755,0.014706,68019.0,68013.0,1.22927436]
[1771714878945,0.014706,68018.0,68013.0,1.24398136]
[1771714879150,0.014706,68019.0,68013.0,1.22927436]
[1771714879454,0.014706,68017.0,68011.0,0.014707]
[1771714879656,0.014707,68015.0,68009.0,0.014708]
[1771714879957,0.014707,68015.0,68010.0,0.014708]
[1771714880856,0.014706,68016.0,68010.0,0.014708]
[1771714881253,0.014706,68016.0,68011.0,0.014707]
[1771714881455,0.014704,68027.0,68015.0,0.014706]
[1771714881650,0.014706,68020.0,68013.0,0.014707]
[1771714882158,0.014706,68018.0,68013.0,0.014707]
[1771714882555,0.014706,68017.0,68011.0,0.014707]
[1771714882753,0.014706,68017.0,68011.0,0.029414]
[1771714883262,0.014706,68020.0,68013.0,0.014707]
[1771714883559,0.014706,68020.0,68014.0,0.014707]
[1771714883760,0.014706,68019.0,68014.0,0.014707]
[1771714887464,0.014705,68023.0,68017.0,0.029412]
[1771714887764,0.014705,68024.0,68018.0,0.014706]
[1771714888559,0.014704,68025.0,68019.0,0.014706]
[1771714888759,0.014704,68026.0,68021.0,0.014705]
[1771714888960,0.014703,68030.0,68023.0,0.014705]
[1771714889156,0.014704,68028.0,68023.0,0.014705]
[1771714890260,0.014704,68028.0,68022.0,0.014705]
[1771714890961,0.014704,68027.0,68022.0,0.014705]
[1771714891156,0.014703,68031.0,68023.0,0.014705]
[1771714891362,0.029406,68030.0,68025.0,0.014704]
[1771714891563,0.014704,68029.0,68025.0,0.014704]
[1771714892366,0.014704,68029.0,68024.0,0.014705]
[1771714892752,0.014703,68033.0,68025.0,0.014704]
[1771714892952,0.014704,68030.0,68025.0,0.014704]
[1771714893156,0.014704,68029.0,68025.0,0.014704]
[1771714894056,0.014704,68030.0,68025.0,0.014704]
[1771714894257,0.014703,68031.0,68026.0,0.014704]
[1771714894459,0.014703,68032.0,68026.0,0.014704]
[1771714895456,0.014704,68029.0,68024.0,0.014705]
[1771714895660,0.014703,68031.0,68026.0,0.014704]
[1771714895960,0.014703,68030.0,68025.0,0.014704]
[1771714896156,0.014704,68029.0,68024.0,0.014705]
[1771714896765,0.014704,68029.0,68025.0,0.014704]
[1771714896967,0.014703,68032.0,68025.0,0.014704]
[1771714897166,0.014703,68034.0,68025.0,0.014704]
[1771714897466,0.014703,68032.0,68025.0,0.029408]
[1771714898165,0.014704,68025.0,68018.0,0.014706]
[1771714898357,0.014704,68026.0,68021.0,0.014705]
[1771714899568,0.014704,68025.0,68021.0,0.014705]
[1771714899963,0.55294349,68049.0,68024.0,1.11836673]
[1771714900169,0.014702,68038.0,68033.0,0.014702]
[1771714900975,0.029405,68034.0,68028.0,0.014704]
[1771714901267,0.014703,68033.0,68027.0,0.014704]
[1771714901455,0.014703,68033.0,68027.0,0.029408]
[1771714901856,0.014703,68033.0,68028.0,0.014704]
[1771714903054,0.014702,68035.0,68027.0,0.014704]
[1771714903262,0.014701,68039.0,68026.0,1.13307073]
[1771714903466,0.014701,68039.0,68034.0,0.014702]
[1771714903667,0.007261,68039.0,68034.0,0.014702]
[1771714903868,0.014701,68041.0,68036.0,0.014702]
[1771714905168,0.014699,68049.0,68036.0,0.014702]
[1771714905169,0.0147,68046.0,68041.0,0.014701]
[1771714905569,0.0147,68045.0,68040.0,0.014701]
[1771714906171,0.014698,68054.0,68034.0,1.11836673]
[1771714906372,0.0147,68048.0,68043.0,0.0147]
[1771714907465,0.0147,68047.0,68043.0,0.0147]
[1771714909067,0.0147,68048.0,68043.0,0.0147]
[1771714909463,0.014696,68063.0,68038.0,1.1797143]
[1771714909668,0.014698,68056.0,68043.0,1.11836673]
[1771714909971,0.014696,68062.0,68050.0,1.13306573]
[1771714910273,0.014696,68062.0,68055.0,0.014698]
[1771714910467,0.014696,68065.0,68055.0,0.014698]
[1771714910770,0.014696,68062.0,68055.0,0.014698]
[1771714910968,0.014697,68061.0,68057.0,0.014697]
[1771714914275,0.014697,68061.0,68056.0,0.014698]
[1771714914872,0.014696,68063.0,68057.0,0.014697]
[1771714915074,0.014697,68062.0,68057.0,0.014697]
[1771714915778,0.014701,68041.0,68030.0,1.1797143]
[1771714915980,0.0147,68044.0,68038.0,0.014701]
[1771714916176,0.014701,68043.0,68038.0,0.014701]
[1771714917782,0.014701,68039.0,68033.0,0.014702]
[1771714917982,0.014701,68043.0,68037.0,0.014702]
[1771714918287,0.014701,68042.0,68037.0,0.014702]
[1771714919280,0.0147,68045.0,68037.0,0.014702]
[1771714919582,0.0147,68046.0,68038.0,0.014701]
[1771714919777,0.014699,68048.0,68038.0,0.014701]
[1771714919984,0.014701,68043.0,68038.0,0.014701]
[1771714920284,0.0147,68044.0,68038.0,0.014701]
[1771714920782,0.0147,68045.0,68039.0,0.014701]
[1771714920984,0.0147,68046.0,68036.0,1.13306873]
[1771714921176,0.0147,68046.0,68041.0,0.014701]
[1771714922075,0.0147,68047.0,68042.0,0.014701]
[1771714922276,0.014699,68050.0,68043.0,0.0147]
[1771714922480,0.014699,68049.0,68043.0,0.0147]
[1771714922683,0.014699,68048.0,68043.0,0.0147]
[1771714922986,0.014699,68050.0,68044.0,0.0147]
[1771714923188,0.014699,68052.0,68044.0,0.0147]
[1771714923386,0.014699,68050.0,68044.0,0.0147]
[1771714923590,0.014698,68054.0,68044.0,0.0147]
[1771714923782,0.014699,68052.0,68047.0,0.014699]
[1771714924086,0.014697,68061.0,68047.0,0.014699]
[1771714924087,0.014698,68054.0,68047.0,0.014699]
[1771714924286,0.014698,68056.0,68049.0,0.014699]
[1771714924584,0.014698,68056.0,68040.0,1.1797143]
[1771714924585,0.014696,68062.0,68055.0,0.014698]
[1771714924786,0.014696,68064.0,68056.0,0.014697]
[1771714924974,0.014696,68062.0,68056.0,0.014697]
[1771714925179,0.014696,68066.0,68056.0,0.014697]
[1771714925584,0.014697,68061.0,68056.0,0.014697]
[1771714926389,0.014696,68063.0,68056.0,0.029394]
[1771714926685,0.014696,68065.0,68057.0,0.014697]
[1771714926881,0.014696,68066.0,68057.0,0.014697]
[1771714927084,0.014696,68065.0,68057.0,0.014697]
[1771714927278,0.014696,68063.0,68056.0,0.014698]
[1771714927485,0.014697,68060.0,68053.0,0.014698]
[1771714927791,0.014697,68059.0,68053.0,0.014698]
[1771714927976,0.014697,68061.0,68055.0,0.014698]
[1771714928181,0.014696,68062.0,68056.0,0.014698]
[1771714928381,0.014696,68062.0,68049.0,0.014699]
[1771714928585,0.014698,68055.0,68049.0,0.014699]
[1771714929574,0.014698,68055.0,68042.0,0.4706]
[1771714929575,0.014699,68053.0,68046.0,0.0147]
[1771714929780,0.014699,68052.0,68045.0,0.0147]
[1771714929980,0.014699,68052.0,68046.0,0.0147]
[1771714930177,0.014699,68052.0,68045.0,0.0147]
[1771714930377,0.014699,68051.0,68043.0,0.0147]
[1771714930582,0.014699,68052.0,68045.0,0.0147]
[1771714931387,0.014699,68051.0,68045.0,0.0147]
[1771714932091,0.014699,68052.0,68045.0,0.0147]
[1771714932588,0.029398,68052.0,68045.0,0.0147]
[1771714932779,0.014699,68052.0,68045.0,0.0147]
[1771714932979,0.014698,68056.0,68045.0,0.0147]
[1771714933186,0.014698,68055.0,68047.0,0.014699]
[1771714933393,0.014698,68054.0,68045.0,0.0147]
[1771714934190,0.014699,68050.0,68043.0,0.0147]
[1771714934488,0.0147,68045.0,68042.0,0.4706]
[1771714934688,0.0147,68044.0,68042.0,0.13967207]
[1771714934890,0.014701,68043.0,68037.0,0.014702]
[1771714935087,0.0147,68044.0,68038.0,0.014702]
[1771714935281,0.0147,68045.0,68038.0,0.014702]
[1771714935884,0.0147,68045.0,68039.0,0.014701]
[1771714936595,0.014699,68049.0,68039.0,0.014701]
[1771714936795,0.014699,68049.0,68040.0,0.014701]
[1771714936995,0.0147,68046.0,68039.0,0.014701]
[1771714938095,0.0147,68046.0,68039.0,0.029402]
[1771714938697,0.0147,68046.0,68039.0,0.014701]
[1771714939798,0.0147,68046.0,68036.0,0.014702]
[1771714939799,0.0147,68044.0,68036.0,0.014702]
[1771714939998,0.0147,68044.0,68036.0,0.029404]
[1771714940701,0.0147,68044.0,68037.0,0.014702]
[1771714941404,0.0147,68045.0,68037.0,0.014702]
[1771714942409,0.014699,68049.0,68042.0,0.014701]
[1771714943602,0.014699,68048.0,68042.0,0.014701]
[1771714944604,0.014699,68049.0,68042.0,0.014701]
[1771714944811,0.014699,68049.0,68042.0,0.029402]
[1771714944997,0.014699,68049.0,68042.0,0.014701]
[1771714947795,0.014699,68049.0,68043.0,0.0147]
[1771714949299,0.014699,68051.0,68044.0,0.0147]
[1771714949505,0.014699,68051.0,68045.0,0.0147]
[1771714950103,0.029398,68051.0,68045.0,0.0147]
[1771714950299,0.014696,68062.0,68045.0,0.0147]
[1771714950503,0.014698,68053.0,68047.0,0.0147]
[1771714950804,0.014699,68052.0,68047.0,0.0147]
[1771714951405,0.014699,68052.0,68046.0,0.0147]
[1771714953209,0.0147,68048.0,68040.0,0.06134757]
[1771714953409,0.0147,68048.0,68039.0,0.014701]
[1771714953707,0.0147,68048.0,68042.0,0.014701]
[1771714956512,0.014699,68049.0,68043.0,0.0147]
[1771714957204,0.014699,68048.0,68043.0,0.0147]
[1771714958406,0.0147,68047.0,68042.0,0.014701]
[1771714958610,0.0147,68047.0,68038.0,0.014702]
[1771714958914,0.014699,68053.0,68046.0,0.0147]
[1771714959211,0.014699,68053.0,68047.0,0.0147]
[1771714959907,0.014698,68054.0,68049.0,0.014699]
[1771714960109,0.014698,68054.0,68048.0,0.014699]
[1771714960405,0.014698,68054.0,68049.0,0.014699]
[1771714961111,0.014698,68055.0,68049.0,0.014699]
[1771714961607,0.014698,68056.0,68048.0,0.014699]
[1771714961813,0.014698,68054.0,68049.0,0.014699]
[1771714962612,0.014698,68055.0,68049.0,0.014699]
[1771714962906,0.26381098,68078.0,68052.0,0.014698]
[1771714963109,0.014696,68065.0,68057.0,0.014697]
[1771714963507,0.014696,68064.0,68057.0,0.014697]
[1771714963702,0.014697,68061.0,68054.0,0.014698]
[1771714964099,0.014697,68060.0,68053.0,0.014698]
[1771714966108,0.014697,68060.0,68054.0,0.014698]
[1771714966409,0.014697,68060.0,68048.0,0.014699]
[1771714966599,0.014698,68054.0,68048.0,0.014699]
[1771714966799,0.014698,68054.0,68047.0,0.0147]
[1771714967004,0.014698,68054.0,68048.0,0.014699]
[1771714967413,0.014698,68056.0,68048.0,0.014699]
[1771714968607,0.014698,68055.0,68048.0,0.014699]
[1771714968810,0.014699,68052.0,68044.0,0.0147]
[1771714969114,0.014699,68048.0,68041.0,0.014701]
[1771714969305,0.0147,68047.0,68039.0,0.014701]
[1771714970009,0.0147,68044.0,68037.0,0.014702]
[1771714971809,0.0147,68044.0,68035.0,0.014702]
[1771714972010,0.0147,68044.0,68037.0,0.014702]
[1771714973316,0.0147,68046.0,68038.0,0.014702]
[1771714973511,0.0147,68046.0,68039.0,0.014701]
[1771714973715,0.0147,68046.0,68039.0,0.029402]
[1771714974018,0.0147,68047.0,68040.0,0.014701]
[1771714975014,0.014699,68050.0,68043.0,0.0147]
[1771714975513,0.014698,68055.0,68047.0,0.0147]
[1771714975718,0.014698,68055.0,68047.0,0.014699]
[1771714975919,0.014698,68053.0,68042.0,0.014701]
[1771714976217,0.014699,68051.0,68044.0,0.0147]
[1771714977117,0.014699,68052.0,68045.0,0.0147]
[1771714979018,0.014698,68056.0,68045.0,0.0147]
[1771714979317,0.014698,68056.0,68048.0,0.014699]
[1771714980810,0.014698,68056.0,68049.0,0.014699]
[1771714981113,0.014698,68055.0,68049.0,0.014699]
[1771714981316,0.014698,68055.0,68048.0,0.014699]
[1771714981512,0.67217327,68060.0,68035.0,8.3e-07]
[1771714981712,0.014702,68038.0,68031.0,0.485303]
[1771714982018,0.014701,68040.0,68033.0,0.014702]
[1771714982219,0.0147,68044.0,68034.0,0.014702]
[1771714982519,0.014701,68042.0,68036.0,0.014702]
[1771714982819,0.014701,68043.0,68036.0,0.014702]
[1771714983314,0.0147,68044.0,68037.0,0.014702]
[1771714983816,0.014701,68043.0,68037.0,0.014702]
[1771714984518,0.014701,68043.0,68034.0,0.014702]
[1771714984519,0.014701,68043.0,68036.0,0.014702]
[1771714985413,0.014697,68059.0,68052.0,0.014699]
[1771714985618,0.014697,68057.0,68051.0,0.014699]
[1771714986722,0.014697,68059.0,68051.0,0.014699]
[1771714987515,0.014697,68058.0,68052.0,0.014698]
[1771714988818,0.014698,68055.0,68038.0,0.014702]
[1771714989021,0.014701,68039.0,68033.0,0.014702]
[1771714989323,0.014701,68039.0,68033.0,0.014703]
[1771714989711,0.014701,68039.0,68032.0,0.014703]
[1771714989917,0.014701,68039.0,68032.0,0.029406]
[1771714990115,0.014701,68039.0,68033.0,0.014703]
[1771714990523,0.014702,68038.0,68032.0,0.014703]
[1771714990916,0.69778508,68053.0,68028.0,1.02358943]
[1771714990917,0.69637051,68051.0,68029.0,0.014703]
[1771714991217,0.014702,68035.0,68029.0,0.014703]
[1771714991419,0.014702,68034.0,68028.0,0.014704]
[1771714992715,0.014702,68034.0,68019.0,0.014705]
[1771714992716,0.014704,68026.0,68017.0,0.014706]
[1771714992918,0.014704,68026.0,68014.0,0.485307]
[1771714992919,0.014704,68026.0,68019.0,0.014705]
[1771714994019,0.014704,68026.0,68019.0,0.015705]
[1771714994325,0.014706,68020.0,68014.0,0.4706]
[1771714994520,0.014706,68018.0,68014.0,0.4706]
[1771714994914,0.014706,68018.0,68012.0,0.014707]
[1771714995116,0.014706,68018.0,68008.0,0.014708]
[1771714995319,0.014706,68016.0,68009.0,0.014708]
[1771714995523,0.014706,68016.0,68010.0,0.014708]
[1771714995922,0.014707,68015.0,68008.0,0.029416]
[1771714996122,0.014707,68015.0,68008.0,0.014708]
[1771714997122,0.014707,68015.0,68008.0,0.029416]
[1771714997326,0.014707,68015.0,68008.0,0.014708]
[1771714997523,0.014705,68021.0,68005.0,1.0391417]
[1771714997722,0.014706,68017.0,68009.0,0.014708]
[1771714998118,0.014706,68017.0,68010.0,0.014708]
[1771714999630,0.014706,68018.0,68011.0,0.014707]
[1771715000224,0.014706,68016.0,68008.0,0.014708]
[1771715000426,0.014705,68022.0,68007.0,1.0391417]
[1771715000630,0.014705,68022.0,68014.0,0.014707]
[1771715000831,0.014705,68021.0,68014.0,0.014707]
[1771715001426,0.014703,68032.0,68023.0,0.014705]
[1771715001729,0.014703,68032.0,68013.0,1.0391417]
[1771715001730,0.014703,68030.0,68022.0,0.014705]
[1771715002034,0.014703,68034.0,68022.0,0.014705]
[1771715002329,0.014703,68030.0,68024.0,0.014704]
[1771715002529,0.014703,68030.0,68023.0,0.014705]
[1771715002923,0.014703,68033.0,68026.0,0.014704]
[1771715003124,0.014703,68032.0,68025.0,0.014704]
[1771715004232,0.014703,68032.0,68026.0,0.014704]
[1771715004723,0.014703,68033.0,68027.0,0.014704]
[1771715005130,0.014703,68032.0,68027.0,0.014704]
[1771715005331,0.014702,68035.0,68027.0,0.014704]
[1771715005532,0.014702,68035.0,68023.0,0.014705]
[1771715005733,0.014703,68031.0,68026.0,0.014704]
[1771715006133,0.014702,68037.0,68026.0,0.014704]
[1771715006526,0.014703,68031.0,68025.0,0.014704]
[1771715007830,0.014703,68030.0,68021.0,0.014705]
[1771715008031,0.014701,68040.0,68002.0,1.0538507]
[1771715008032,0.014706,68017.0,68002.0,1.0538507]
[1771715008223,0.014706,68019.0,68013.0,0.014707]
[1771715008429,0.014706,68017.0,68009.0,0.014708]
[1771715008629,0.014706,68017.0,68011.0,0.014707]
[1771715009334,0.014706,68017.0,68006.0,0.014708]
[1771715009335,0.014707,68015.0,68010.0,0.014708]
[1771715009535,0.014707,68015.0,68009.0,0.014708]
[1771715011437,0.014707,68014.0,68009.0,0.014708]
[1771715012037,0.014707,68015.0,68009.0,0.014708]
[1771715013127,0.014707,68014.0,68009.0,0.014708]
[1771715013834,0.014707,68014.0,68007.0,0.014708]
[1771715014029,0.014708,68007.0,68001.0,0.029419]
[1771715014230,0.65466817,68018.0,67995.0,1.5097817]
[1771715014431,0.014711,67995.0,67989.0,0.014712]
[1771715014630,0.014709,68004.0,67989.0,0.014712]
[1771715014631,0.014711,67996.0,67990.0,0.014712]
[1771715014833,0.01471,67999.0,67988.0,0.014712]
[1771715015041,0.014709,68004.0,67980.0,0.01965183]
[1771715015042,0.014709,68004.0,67982.0,1.0391417]
[1771715015232,0.014709,68006.0,67999.0,0.01471]
[1771715015431,0.014708,68007.0,67999.0,0.01471]
[1771715015432,0.01481856,68005.0,67999.0,0.01471]
[1771715015638,0.00010956,68005.0,68000.0,0.01471]
[1771715015828,0.014707,68015.0,67996.0,0.014711]
[1771715015829,0.014707,68012.0,67997.0,0.01471]
[1771715016028,0.014707,68013.0,68006.0,0.00088]
[1771715016234,0.01471,67999.0,67993.0,0.014711]
[1771715016432,0.01471,68001.0,67991.0,0.014712]
[1771715016742,0.01471,68002.0,67991.0,0.014712]
[1771715016941,0.01471,68000.0,67994.0,0.014711]
[1771715017338,0.01471,68002.0,67995.0,0.014711]
[1771715018041,0.01471,68001.0,67995.0,0.014711]
[1771715018841,0.014709,68002.0,67995.0,0.014711]
[1771715019044,0.014709,68003.0,67993.0,0.014711]
[1771715019243,0.01471,68002.0,67995.0,0.014711]
[1771715020244,0.01471,68001.0,67995.0,0.014711]
[1771715021238,0.66478186,68005.0,67982.0,1.08304255]
[1771715021435,0.014712,67990.0,67982.0,0.014714]
[1771715021637,0.014712,67990.0,67981.0,0.0007355]
[1771715021638,0.014712,67990.0,67983.0,0.014713]
[1771715021837,0.72615751,68000.0,67981.0,0.0007355]
[1771715022042,0.014712,67992.0,67986.0,0.014713]
[1771715022238,0.014712,67990.0,67983.0,0.014713]
[1771715023041,0.014712,67990.0,67981.0,0.0007355]
[1771715023240,0.72615751,68000.0,67981.0,0.0007355]
[1771715023241,0.014711,67993.0,67985.0,0.014713]
[1771715023441,0.014712,67991.0,67985.0,0.014713]
[1771715023641,0.014711,67993.0,67987.0,0.014713]
[1771715023844,0.01471,67999.0,67983.0,0.014713]
[1771715024041,0.014711,67996.0,67989.0,0.014712]
[1771715024247,0.014711,67996.0,67990.0,0.014712]
[1771715025647,0.014711,67995.0,67990.0,0.014712]
[1771715025842,0.014711,67995.0,67989.0,0.014712]
[1771715026540,0.014711,67995.0,67987.0,0.014712]
[1771715027649,0.014711,67995.0,67989.0,0.014712]
[1771715028048,0.014711,67995.0,67989.0,0.015512]
[1771715028249,0.014711,67995.0,67989.0,0.014712]
[1771715029542,0.01471,67998.0,67992.0,0.014711]
[1771715029744,0.01471,67997.0,67991.0,0.014712]
[1771715030352,0.01471,67997.0,67990.0,0.014712]
[1771715030750,0.01471,67997.0,67991.0,0.014712]
[1771715030952,0.01471,67999.0,67992.0,0.014712]
[1771715031148,0.01471,67998.0,67992.0,0.014712]
[1771715031451,0.02942,67998.0,67992.0,0.014712]
[1771715031754,0.01471,67998.0,67992.0,0.014712]
[1771715032150,0.014711,67997.0,67992.0,0.014712]
[1771715032952,0.014711,67997.0,67990.0,0.014712]
[1771715032953,0.01471,67998.0,67993.0,0.014711]
[1771715033159,0.014708,68007.0,67994.0,0.014711]
[1771715033361,0.014709,68004.0,67994.0,0.014711]
[1771715033558,0.01471,67999.0,67993.0,0.014711]
[1771715033754,0.01471,67998.0,67993.0,0.014711]
[1771715034157,0.01471,67998.0,67992.0,0.014711]
[1771715034455,0.01471,67997.0,67992.0,0.014711]
[1771715035152,0.01471,67997.0,67987.0,0.014712]
[1771715035153,0.014711,67993.0,67987.0,0.014712]
[1771715035349,0.014711,67993.0,67988.0,0.014712]
[1771715037561,0.014711,67994.0,67988.0,0.029424]
[1771715037964,0.014711,67994.0,67988.0,0.014712]
[1771715039159,0.014711,67993.0,67984.0,0.014713]
[1771715039866,0.014711,67993.0,67983.0,0.014713]
[1771715039867,0.014711,67993.0,67986.0,0.014713]
[1771715040057,0.014711,67993.0,67986.0,0.029426]
[1771715041368,0.01471,67999.0,67992.0,0.014711]
[1771715041560,0.014711,67997.0,67991.0,0.014712]
[1771715042273,0.014711,67996.0,67991.0,0.014712]
[1771715042658,0.014708,68008.0,68001.0,0.014709]